[Event "*** Titled Tuesday Blitz"]
[Site "Chess.com"]
[Date "2020.04.21"]
[Round "9"]
[White "kuba2006"]
[Black "nabukatnezarr"]
[Result "0-1"]
[WhiteElo "2439"]
[BlackElo "2499"]
[TimeControl "180+1"]
[EndTime "11:48:14 PDT"]
[Termination "nabukatnezarr won by checkmate"]

1. e4 {[%clk 0:03:00.9]} 1... e5 {[%clk 0:02:58.8]} 2. Nf3 {[%clk 0:02:59.9]}
2... Nc6 {[%clk 0:02:59.1]} 3. Nc3 {[%clk 0:02:59.1]} 3... h6 {[%clk 0:02:55.4]}
4. d4 {[%clk 0:02:56.8]} 4... d6 {[%clk 0:02:51.4]} 5. Bc4 {[%clk 0:02:52.4]}
5... exd4 {[%clk 0:02:31.5]} 6. Nxd4 {[%clk 0:02:53.3]} 6... Nf6 {[%clk
0:02:27]} 7. O-O {[%clk 0:02:50.8]} 7... Be7 {[%clk 0:02:26.2]} 8. Nxc6 {[%clk
0:02:30.8]} 8... bxc6 {[%clk 0:02:25.5]} 9. Qf3 {[%clk 0:02:31]} 9... O-O {[%clk
0:02:22.8]} 10. Rd1 {[%clk 0:02:29.2]} 10... Qe8 {[%clk 0:02:21.4]} 11. Qg3
{[%clk 0:02:24.2]} 11... Kh8 {[%clk 0:02:21]} 12. b3 {[%clk 0:02:15.3]} 12...
Nh5 {[%clk 0:02:16.5]} 13. Qf3 {[%clk 0:02:09.5]} 13... f5 {[%clk 0:02:16.7]}
14. Bb2 {[%clk 0:02:00.3]} 14... fxe4 {[%clk 0:02:14.3]} 15. Qxe4 {[%clk
0:02:01.2]} 15... d5 {[%clk 0:02:13.5]} 16. Nxd5 {[%clk 0:01:39.5]} 16... cxd5
{[%clk 0:02:14.4]} 17. Bxd5 {[%clk 0:01:40.4]} 17... Bf5 {[%clk 0:02:12.4]} 18.
Qe3 {[%clk 0:01:27.5]} 18... Bg5 {[%clk 0:02:09.1]} 19. Qc5 {[%clk 0:01:11.2]}
19... Rd8 {[%clk 0:02:04.6]} 20. Qxc7 {[%clk 0:01:04.6]} 20... Bxc2 {[%clk
0:01:52.2]} 21. Qxc2 {[%clk 0:00:52.5]} 21... Nf4 {[%clk 0:01:52.2]} 22. Bc6
{[%clk 0:00:39]} 22... Qh5 {[%clk 0:01:49.7]} 23. Re1 {[%clk 0:00:32.6]} 23...
Nd3 {[%clk 0:01:46.5]} 24. Rf1 {[%clk 0:00:25.6]} 24... Nxb2 {[%clk 0:01:45.3]}
25. Qxb2 {[%clk 0:00:25.5]} 25... Bf6 {[%clk 0:01:45.7]} 26. Qa3 {[%clk
0:00:18.8]} 26... Bxa1 {[%clk 0:01:37.7]} 27. Rxa1 {[%clk 0:00:19.7]} 27... Rd1+
{[%clk 0:01:23.4]} 28. Rxd1 {[%clk 0:00:11.6]} 28... Qxd1# {[%clk 0:01:24.3]}
0-1

[Event "*** Titled Tuesday Blitz"]
[Site "Chess.com"]
[Date "2020.04.21"]
[Round "9"]
[White "Falia-p"]
[Black "ChristianAlm"]
[Result "1-0"]
[WhiteElo "2348"]
[BlackElo "2456"]
[TimeControl "180+1"]
[EndTime "11:48:14 PDT"]
[Termination "Falia-p won by resignation"]

1. e4 {[%clk 0:03:00.9]} 1... c5 {[%clk 0:02:59.5]} 2. Nf3 {[%clk 0:03:00.4]}
2... d6 {[%clk 0:02:59.2]} 3. d4 {[%clk 0:02:59.9]} 3... cxd4 {[%clk 0:02:58.9]}
4. Nxd4 {[%clk 0:03:00.8]} 4... Nf6 {[%clk 0:02:57.6]} 5. Nc3 {[%clk 0:03:01.2]}
5... g6 {[%clk 0:02:55.9]} 6. Be3 {[%clk 0:03:00.1]} 6... Bg7 {[%clk 0:02:55.7]}
7. f3 {[%clk 0:03:00.1]} 7... O-O {[%clk 0:02:52.9]} 8. Qd2 {[%clk 0:03:00.4]}
8... Nc6 {[%clk 0:02:51.4]} 9. O-O-O {[%clk 0:03:00.5]} 9... Nxd4 {[%clk
0:02:42.9]} 10. Bxd4 {[%clk 0:02:58.6]} 10... Be6 {[%clk 0:02:39.4]} 11. Kb1
{[%clk 0:02:57.5]} 11... a6 {[%clk 0:02:29.4]} 12. h4 {[%clk 0:02:55.8]} 12...
b5 {[%clk 0:02:26.6]} 13. h5 {[%clk 0:02:54.7]} 13... Qc7 {[%clk 0:02:17.4]} 14.
hxg6 {[%clk 0:02:53]} 14... hxg6 {[%clk 0:02:13.3]} 15. g4 {[%clk 0:02:28.8]}
15... Rfc8 {[%clk 0:02:12.2]} 16. Bd3 {[%clk 0:02:21.4]} 16... b4 {[%clk
0:02:03.2]} 17. Nd5 {[%clk 0:02:20.8]} 17... Bxd5 {[%clk 0:01:59]} 18. exd5
{[%clk 0:02:20.5]} 18... a5 {[%clk 0:01:11.3]} 19. g5 {[%clk 0:02:14.6]} 19...
Nh5 {[%clk 0:00:54.1]} 20. Bxg7 {[%clk 0:02:14.2]} 20... Kxg7 {[%clk 0:00:53.9]}
21. f4 {[%clk 0:02:10.2]} 21... Rh8 {[%clk 0:00:50.7]} 22. f5 {[%clk 0:02:09.3]}
22... Qc5 {[%clk 0:00:28.8]} 23. fxg6 {[%clk 0:02:05.3]} 23... fxg6 {[%clk
0:00:29.7]} 24. Qe2 {[%clk 0:02:01]} 24... Rae8 {[%clk 0:00:25.1]} 25. Qe4
{[%clk 0:01:58.6]} 25... Reg8 {[%clk 0:00:04.8]} 26. Qxg6+ {[%clk 0:01:55]}
26... Kf8 {[%clk 0:00:05]} 27. Rdf1+ {[%clk 0:01:53.3]} 27... Nf6 {[%clk
0:00:05]} 28. Rxh8 {[%clk 0:01:51.7]} 28... Rxh8 {[%clk 0:00:03.1]} 29. gxf6
{[%clk 0:01:49.1]} 29... Rg8 {[%clk 0:00:01.6]} 30. fxe7+ {[%clk 0:01:47.4]}
30... Kxe7 {[%clk 0:00:01.1]} 1-0

[Event "*** Titled Tuesday Blitz"]
[Site "Chess.com"]
[Date "2020.04.21"]
[Round "9"]
[White "ADODOVE"]
[Black "PowerThinking2650"]
[Result "0-1"]
[WhiteElo "1927"]
[BlackElo "2273"]
[TimeControl "180+1"]
[EndTime "11:48:14 PDT"]
[Termination "PowerThinking2650 won by checkmate"]

1. e4 {[%clk 0:03:00.9]} 1... e5 {[%clk 0:02:59.4]} 2. Nf3 {[%clk 0:02:59.3]}
2... Nc6 {[%clk 0:02:59.1]} 3. d4 {[%clk 0:03:00.2]} 3... exd4 {[%clk 0:02:59]}
4. Bc4 {[%clk 0:03:00.3]} 4... Nf6 {[%clk 0:02:56]} 5. O-O {[%clk 0:02:59.9]}
5... Nxe4 {[%clk 0:02:56]} 6. Re1 {[%clk 0:02:59.8]} 6... d5 {[%clk 0:02:56.5]}
7. Bxd5 {[%clk 0:03:00.3]} 7... Qxd5 {[%clk 0:02:57.1]} 8. Nc3 {[%clk
0:03:00.4]} 8... Qa5 {[%clk 0:02:57.7]} 9. Nxe4 {[%clk 0:02:59]} 9... Be6 {[%clk
0:02:58.2]} 10. Bd2 {[%clk 0:02:57.5]} 10... Bb4 {[%clk 0:02:53.5]} 11. Bxb4
{[%clk 0:02:50]} 11... Qxb4 {[%clk 0:02:48.6]} 12. a3 {[%clk 0:02:50.9]} 12...
Qc4 {[%clk 0:02:01.5]} 13. b3 {[%clk 0:02:29.4]} 13... Qd5 {[%clk 0:02:00.1]}
14. c4 {[%clk 0:02:21.1]} 14... Qh5 {[%clk 0:01:36.1]} 15. Neg5 {[%clk 0:02:10]}
15... O-O-O {[%clk 0:01:31.5]} 16. Nxe6 {[%clk 0:02:07.4]} 16... fxe6 {[%clk
0:01:31.5]} 17. Rxe6 {[%clk 0:02:06.9]} 17... d3 {[%clk 0:01:20.9]} 18. b4
{[%clk 0:02:01.3]} 18... Qf5 {[%clk 0:00:59.4]} 19. Rxc6 {[%clk 0:01:42.4]}
19... bxc6 {[%clk 0:00:57.8]} 20. Qa4 {[%clk 0:01:43.3]} 20... Qe4 {[%clk
0:00:51.8]} 21. Qa6+ {[%clk 0:01:27.6]} 21... Kb8 {[%clk 0:00:45.1]} 22. b5
{[%clk 0:01:28.5]} 22... c5 {[%clk 0:00:40.7]} 23. b6 {[%clk 0:01:23.5]} 23...
cxb6 {[%clk 0:00:37.6]} 24. Rb1 {[%clk 0:01:23.5]} 24... Qb7 {[%clk 0:00:34.6]}
25. Qa4 {[%clk 0:01:15.5]} 25... Rhe8 {[%clk 0:00:33.2]} 26. Nd2 {[%clk
0:01:13.1]} 26... Re2 {[%clk 0:00:32]} 27. Nb3 {[%clk 0:01:11.1]} 27... d2
{[%clk 0:00:30.2]} 28. Nxc5 {[%clk 0:01:07]} 28... Re1+ {[%clk 0:00:29.1]} 29.
Rxe1 {[%clk 0:01:05.1]} 29... dxe1=Q# {[%clk 0:00:29]} 0-1

[Event "*** Titled Tuesday Blitz"]
[Site "Chess.com"]
[Date "2020.04.21"]
[Round "9"]
[White "fridaywins"]
[Black "gvanna"]
[Result "0-1"]
[WhiteElo "2312"]
[BlackElo "2470"]
[TimeControl "180+1"]
[EndTime "11:48:17 PDT"]
[Termination "gvanna won by resignation"]

1. e4 {[%clk 0:03:00.9]} 1... c5 {[%clk 0:02:59.7]} 2. Nf3 {[%clk 0:02:57.4]}
2... Nc6 {[%clk 0:02:59.7]} 3. Bb5 {[%clk 0:02:56.6]} 3... g6 {[%clk 0:02:59.7]}
4. Bxc6 {[%clk 0:02:56.5]} 4... dxc6 {[%clk 0:03:00.1]} 5. Nc3 {[%clk
0:02:57.4]} 5... Bg7 {[%clk 0:03:00.5]} 6. d3 {[%clk 0:02:57.6]} 6... Nf6 {[%clk
0:02:59.8]} 7. h3 {[%clk 0:02:56.9]} 7... Nd7 {[%clk 0:03:00]} 8. Be3 {[%clk
0:02:57.1]} 8... e5 {[%clk 0:02:59.2]} 9. Qd2 {[%clk 0:02:57.3]} 9... h6 {[%clk
0:02:59.3]} 10. O-O-O {[%clk 0:02:56.3]} 10... Qe7 {[%clk 0:02:58.5]} 11. g4
{[%clk 0:02:56.1]} 11... Nf8 {[%clk 0:02:57]} 12. Nh2 {[%clk 0:02:53.7]} 12...
Ne6 {[%clk 0:02:56.6]} 13. Nf1 {[%clk 0:02:50.3]} 13... Nd4 {[%clk 0:02:53.7]}
14. Ng3 {[%clk 0:02:48.9]} 14... Be6 {[%clk 0:02:52.5]} 15. Kb1 {[%clk
0:02:47.9]} 15... O-O-O {[%clk 0:02:52.2]} 16. Bxd4 {[%clk 0:02:48.1]} 16...
exd4 {[%clk 0:02:40.3]} 17. Nce2 {[%clk 0:02:39.6]} 17... c4 {[%clk 0:02:40.5]}
18. dxc4 {[%clk 0:02:38.2]} 18... Bxc4 {[%clk 0:02:39.9]} 19. b3 {[%clk
0:02:38.2]} 19... d3 {[%clk 0:02:33.8]} 20. Nc3 {[%clk 0:02:08]} 20... Qb4
{[%clk 0:02:21.9]} 21. Kb2 {[%clk 0:02:06.6]} 21... a5 {[%clk 0:01:32.7]} 22. f4
{[%clk 0:02:06.1]} 22... a4 {[%clk 0:01:25.3]} 23. e5 {[%clk 0:02:06]} 23... a3+
{[%clk 0:01:23.6]} 24. Kb1 {[%clk 0:02:04.1]} 24... Ba6 {[%clk 0:01:15]} 25.
Nce4 {[%clk 0:02:02.3]} 25... dxc2+ {[%clk 0:01:09.4]} 26. Qxc2 {[%clk
0:01:57.9]} 26... g5 {[%clk 0:00:58.2]} 27. Rxd8+ {[%clk 0:01:50]} 27... Rxd8
{[%clk 0:00:57.5]} 28. Nd6+ {[%clk 0:01:34.7]} 28... Rxd6 {[%clk 0:00:56.2]} 29.
exd6 {[%clk 0:01:34.5]} 29... Qd4 {[%clk 0:00:52.4]} 30. Kc1 {[%clk 0:01:29.7]}
30... Bd3 {[%clk 0:00:45.2]} 31. Nf5 {[%clk 0:01:21.7]} 31... Qxf4+ {[%clk
0:00:44.4]} 32. Qd2 {[%clk 0:01:20.3]} 32... Bb2+ {[%clk 0:00:42]} 33. Kd1
{[%clk 0:01:19.9]} 33... Qf3+ {[%clk 0:00:41.7]} 34. Ke1 {[%clk 0:01:20.2]}
34... Qxh1+ {[%clk 0:00:41.6]} 35. Kf2 {[%clk 0:01:20.5]} 35... Qh2+ {[%clk
0:00:33.8]} 36. Ke3 {[%clk 0:01:20.6]} 36... Qxd2+ {[%clk 0:00:32.4]} 37. Kxd2
{[%clk 0:01:20.8]} 37... Bxf5 {[%clk 0:00:32.7]} 0-1

[Event "*** Titled Tuesday Blitz"]
[Site "Chess.com"]
[Date "2020.04.21"]
[Round "9"]
[White "LogoCzar"]
[Black "AniJak"]
[Result "1-0"]
[WhiteElo "2443"]
[BlackElo "2257"]
[TimeControl "180+1"]
[EndTime "11:48:19 PDT"]
[Termination "LogoCzar won by resignation"]

1. d4 {[%clk 0:03:00.9]} 1... d5 {[%clk 0:02:59.5]} 2. c4 {[%clk 0:03:00.7]}
2... c6 {[%clk 0:02:59.8]} 3. Nc3 {[%clk 0:03:00.2]} 3... Nf6 {[%clk 0:02:59]}
4. Nf3 {[%clk 0:03:00.2]} 4... e6 {[%clk 0:02:58.1]} 5. Bg5 {[%clk 0:03:00.3]}
5... h6 {[%clk 0:02:57.3]} 6. Bh4 {[%clk 0:03:00.2]} 6... dxc4 {[%clk
0:02:57.2]} 7. e4 {[%clk 0:02:59.9]} 7... g5 {[%clk 0:02:57]} 8. Bg3 {[%clk
0:02:59.9]} 8... b5 {[%clk 0:02:55.5]} 9. Be2 {[%clk 0:03:00]} 9... a6 {[%clk
0:02:55]} 10. h4 {[%clk 0:02:57.2]} 10... Rg8 {[%clk 0:02:51.8]} 11. hxg5 {[%clk
0:02:54.3]} 11... hxg5 {[%clk 0:02:52.7]} 12. Qd2 {[%clk 0:02:52.7]} 12... g4
{[%clk 0:02:48.1]} 13. Ne5 {[%clk 0:02:52.1]} 13... b4 {[%clk 0:02:48]} 14. Na4
{[%clk 0:02:40.8]} 14... Nxe4 {[%clk 0:02:47.8]} 15. Qf4 {[%clk 0:02:37.8]}
15... f5 {[%clk 0:02:36.6]} 16. O-O-O {[%clk 0:02:25.9]} 16... Qg5 {[%clk
0:02:28.3]} 17. Qxg5 {[%clk 0:02:16.6]} 17... Nxg5 {[%clk 0:02:21.9]} 18. Nb6
{[%clk 0:02:09.5]} 18... Bb7 {[%clk 0:02:10.7]} 19. Nxa8 {[%clk 0:02:08.6]}
19... Bxa8 {[%clk 0:02:11.6]} 20. Nxc4 {[%clk 0:02:01.3]} 20... Nd7 {[%clk
0:02:10.2]} 21. Nd6+ {[%clk 0:01:56.6]} 21... Ke7 {[%clk 0:02:00.9]} 22. Bxa6
{[%clk 0:01:46.7]} 22... Bg7 {[%clk 0:02:00.5]} 23. Rhe1 {[%clk 0:01:42.8]}
23... Nb6 {[%clk 0:01:54.7]} 24. Nxf5+ {[%clk 0:01:41]} 24... Kf7 {[%clk
0:01:48.9]} 25. Nxg7 {[%clk 0:01:39.3]} 25... Rxg7 {[%clk 0:01:49.1]} 26. Be5
{[%clk 0:01:33.4]} 26... Rg8 {[%clk 0:01:47.7]} 27. Be2 {[%clk 0:01:31.2]} 27...
Ne4 {[%clk 0:01:43.3]} 28. f3 {[%clk 0:01:27.3]} 28... Nf2 {[%clk 0:01:37.2]}
29. Rd2 {[%clk 0:01:21.5]} 29... gxf3 {[%clk 0:01:14.1]} 30. Bxf3 {[%clk
0:01:19.3]} 30... Ng4 {[%clk 0:01:12.5]} 31. Bxg4 {[%clk 0:01:16.9]} 31... Rxg4
{[%clk 0:01:12.5]} 32. Rf1+ {[%clk 0:01:16.5]} 32... Ke7 {[%clk 0:01:08.1]} 33.
Rdf2 {[%clk 0:01:15.3]} 33... Nd7 {[%clk 0:00:58.4]} 34. Rf7+ {[%clk 0:01:11.7]}
34... Ke8 {[%clk 0:00:56]} 35. Bd6 {[%clk 0:01:07.6]} 35... Rxg2 {[%clk
0:00:51.6]} 36. Re7+ {[%clk 0:01:07]} 36... Kd8 {[%clk 0:00:50.8]} 37. Rff7
{[%clk 0:01:07.3]} 37... Rg1+ {[%clk 0:00:44.8]} 38. Kc2 {[%clk 0:01:06.4]} 1-0

[Event "*** Titled Tuesday Blitz"]
[Site "Chess.com"]
[Date "2020.04.21"]
[Round "9"]
[White "eljanov"]
[Black "Semen_Khanin"]
[Result "1-0"]
[WhiteElo "2814"]
[BlackElo "2649"]
[TimeControl "180+1"]
[EndTime "11:48:20 PDT"]
[Termination "eljanov won by resignation"]

1. Nf3 {[%clk 0:03:00.2]} 1... Nf6 {[%clk 0:02:59.3]} 2. g3 {[%clk 0:02:59.5]}
2... g6 {[%clk 0:02:59.3]} 3. Bg2 {[%clk 0:02:59.1]} 3... Bg7 {[%clk 0:03:00.2]}
4. c4 {[%clk 0:02:59.3]} 4... O-O {[%clk 0:02:59.8]} 5. O-O {[%clk 0:02:59.6]}
5... c6 {[%clk 0:02:58.6]} 6. d4 {[%clk 0:02:54.9]} 6... d5 {[%clk 0:02:58.8]}
7. Qb3 {[%clk 0:02:55.5]} 7... Qb6 {[%clk 0:02:57.4]} 8. Nc3 {[%clk 0:02:53.5]}
8... Rd8 {[%clk 0:02:57.5]} 9. Na4 {[%clk 0:02:46.7]} 9... Qxb3 {[%clk
0:02:54.1]} 10. axb3 {[%clk 0:02:46.9]} 10... Na6 {[%clk 0:02:51.8]} 11. Bf4
{[%clk 0:02:46.6]} 11... Ne4 {[%clk 0:02:45.8]} 12. Nc3 {[%clk 0:02:41.4]} 12...
Bf5 {[%clk 0:02:41.6]} 13. Ne5 {[%clk 0:02:28.4]} 13... g5 {[%clk 0:02:35.7]}
14. Be3 {[%clk 0:02:11.6]} 14... h6 {[%clk 0:02:18.4]} 15. Nxc6 {[%clk
0:02:03.4]} 15... bxc6 {[%clk 0:02:15.3]} 16. Rxa6 {[%clk 0:02:03.4]} 16... c5
{[%clk 0:01:29.4]} 17. Nxd5 {[%clk 0:01:59.8]} 17... e6 {[%clk 0:01:06.5]} 18.
Ne7+ {[%clk 0:01:58.4]} 18... Kf8 {[%clk 0:01:06.8]} 19. Nxf5 {[%clk 0:01:56.6]}
19... exf5 {[%clk 0:01:07.1]} 20. dxc5 {[%clk 0:01:54.4]} 20... Rab8 {[%clk
0:01:06.1]} 21. g4 {[%clk 0:01:43.6]} 21... Rxb3 {[%clk 0:01:00.5]} 22. gxf5
{[%clk 0:01:41.9]} 22... Rxe3 {[%clk 0:00:49]} 23. fxe3 {[%clk 0:01:42.1]} 23...
Nxc5 {[%clk 0:00:49.2]} 24. Rxa7 {[%clk 0:01:42.7]} 24... Bxb2 {[%clk
0:00:49.2]} 25. Bd5 {[%clk 0:01:41.1]} 25... Rd7 {[%clk 0:00:43.5]} 26. Rxd7
{[%clk 0:01:34]} 26... Nxd7 {[%clk 0:00:43.6]} 27. Rb1 {[%clk 0:01:33]} 27...
Ba3 {[%clk 0:00:43.3]} 28. Rb7 {[%clk 0:01:28.1]} 28... Ne5 {[%clk 0:00:43.3]}
29. f6 {[%clk 0:01:27.3]} 29... Ke8 {[%clk 0:00:42.6]} 30. e4 {[%clk 0:01:09.8]}
30... Bc5+ {[%clk 0:00:39.6]} 31. Kg2 {[%clk 0:01:10]} 31... h5 {[%clk
0:00:39.9]} 32. h3 {[%clk 0:01:08.5]} 32... Be3 {[%clk 0:00:36.3]} 33. Re7+
{[%clk 0:01:06.7]} 1-0

[Event "*** Titled Tuesday Blitz"]
[Site "Chess.com"]
[Date "2020.04.21"]
[Round "9"]
[White "Anurag328"]
[Black "jsdbv18"]
[Result "1-0"]
[WhiteElo "2719"]
[BlackElo "2566"]
[TimeControl "180+1"]
[EndTime "11:48:25 PDT"]
[Termination "Anurag328 won by resignation"]

1. c4 {[%clk 0:03:00.9]} 1... e5 {[%clk 0:02:59.6]} 2. g3 {[%clk 0:03:01.1]}
2... Nc6 {[%clk 0:02:59.6]} 3. Bg2 {[%clk 0:03:01.7]} 3... g6 {[%clk 0:03:00.3]}
4. Nc3 {[%clk 0:03:02]} 4... Bg7 {[%clk 0:03:00.8]} 5. d3 {[%clk 0:03:02.4]}
5... Nf6 {[%clk 0:03:01]} 6. Nf3 {[%clk 0:03:03.2]} 6... O-O {[%clk 0:03:00.5]}
7. O-O {[%clk 0:03:03.6]} 7... d6 {[%clk 0:03:00.9]} 8. Rb1 {[%clk 0:03:03.7]}
8... a5 {[%clk 0:03:00.9]} 9. a3 {[%clk 0:03:03.9]} 9... h6 {[%clk 0:03:01.3]}
10. b4 {[%clk 0:03:03.5]} 10... axb4 {[%clk 0:03:01.9]} 11. axb4 {[%clk
0:03:04.4]} 11... Be6 {[%clk 0:03:02.3]} 12. b5 {[%clk 0:03:00.9]} 12... Ne7
{[%clk 0:03:02.9]} 13. Bb2 {[%clk 0:02:32.8]} 13... c6 {[%clk 0:02:55.1]} 14. c5
{[%clk 0:02:21.2]} 14... Nfd5 {[%clk 0:02:25.5]} 15. Ne4 {[%clk 0:02:21.2]}
15... dxc5 {[%clk 0:02:17.3]} 16. Nxc5 {[%clk 0:02:22.1]} 16... Bc8 {[%clk
0:02:11.2]} 17. Qb3 {[%clk 0:01:49.7]} 17... b6 {[%clk 0:02:02.4]} 18. Ne4
{[%clk 0:01:45.9]} 18... Be6 {[%clk 0:02:01.9]} 19. Bxe5 {[%clk 0:01:35.6]}
19... Bxe5 {[%clk 0:01:54.2]} 20. Nxe5 {[%clk 0:01:36.4]} 20... Nf4 {[%clk
0:01:54.2]} 21. Qb2 {[%clk 0:01:36.5]} 21... Nxg2 {[%clk 0:01:53.2]} 22. Nf6+
{[%clk 0:01:25.4]} 22... Kh8 {[%clk 0:01:53.2]} 23. Nxc6 {[%clk 0:01:09.1]}
23... Nxc6 {[%clk 0:01:51.2]} 24. bxc6 {[%clk 0:01:10]} 24... Ra2 {[%clk
0:01:41.7]} 25. Qe5 {[%clk 0:01:10.3]} 25... Rxe2 {[%clk 0:01:33.2]} 26. Qxe2
{[%clk 0:01:09.2]} 26... Qxf6 {[%clk 0:01:33]} 27. Kxg2 {[%clk 0:01:07.9]} 27...
Bd5+ {[%clk 0:01:33.4]} 28. f3 {[%clk 0:01:04.2]} 28... Qxc6 {[%clk 0:01:33.9]}
29. Qe3 {[%clk 0:01:02.8]} 29... b5 {[%clk 0:01:32.6]} 30. Qxh6+ {[%clk
0:01:02.7]} 30... Kg8 {[%clk 0:01:32.3]} 31. Rb4 {[%clk 0:00:47.8]} 31... Qc2+
{[%clk 0:01:22.1]} 32. Rf2 {[%clk 0:00:48.1]} 32... Qc3 {[%clk 0:01:12.9]} 33.
Rh4 {[%clk 0:00:37]} 33... Qg7 {[%clk 0:01:12.9]} 34. Qxg7+ {[%clk 0:00:37.4]}
34... Kxg7 {[%clk 0:01:13.8]} 35. Rb2 {[%clk 0:00:37.2]} 35... Bc6 {[%clk
0:01:14]} 36. Rd4 {[%clk 0:00:36]} 36... Re8 {[%clk 0:01:14.1]} 37. Rd6 {[%clk
0:00:35.5]} 37... Re2+ {[%clk 0:01:14.4]} 38. Rxe2 {[%clk 0:00:35.3]} 1-0

[Event "*** Titled Tuesday Blitz"]
[Site "Chess.com"]
[Date "2020.04.21"]
[Round "9"]
[White "Sjakkerntobi"]
[Black "amelia91"]
[Result "1-0"]
[WhiteElo "2175"]
[BlackElo "1928"]
[TimeControl "180+1"]
[EndTime "11:48:32 PDT"]
[Termination "Sjakkerntobi won by resignation"]

1. e4 {[%clk 0:03:00.9]} 1... c5 {[%clk 0:02:05.9]} 2. Nf3 {[%clk 0:02:58.4]}
2... d6 {[%clk 0:02:05.8]} 3. d4 {[%clk 0:02:59.3]} 3... cxd4 {[%clk 0:02:06]}
4. Qxd4 {[%clk 0:03:00.2]} 4... Nc6 {[%clk 0:02:04.6]} 5. Bb5 {[%clk 0:02:59.3]}
5... Bd7 {[%clk 0:02:04.4]} 6. Bxc6 {[%clk 0:02:59.3]} 6... Bxc6 {[%clk
0:02:04.1]} 7. Nc3 {[%clk 0:03:00.2]} 7... e6 {[%clk 0:02:02.5]} 8. Bg5 {[%clk
0:02:59.7]} 8... Nf6 {[%clk 0:02:00.6]} 9. O-O-O {[%clk 0:02:57.1]} 9... Be7
{[%clk 0:01:58.3]} 10. Qd3 {[%clk 0:02:57.1]} 10... O-O {[%clk 0:01:54.5]} 11.
Nd4 {[%clk 0:02:56.8]} 11... Rc8 {[%clk 0:01:46.9]} 12. f4 {[%clk 0:02:56.3]}
12... a6 {[%clk 0:01:41.9]} 13. g3 {[%clk 0:02:54.4]} 13... Qc7 {[%clk
0:01:39.7]} 14. Kb1 {[%clk 0:02:53.5]} 14... Rfd8 {[%clk 0:01:38.7]} 15. h4
{[%clk 0:02:53.1]} 15... b5 {[%clk 0:01:36.7]} 16. f5 {[%clk 0:02:51.8]} 16...
b4 {[%clk 0:01:31.2]} 17. Nce2 {[%clk 0:02:49.6]} 17... Bxe4 {[%clk 0:01:28.5]}
18. Qd2 {[%clk 0:02:48.8]} 18... Bxh1 {[%clk 0:01:24.5]} 19. Rxh1 {[%clk
0:02:47.4]} 19... Ne4 {[%clk 0:01:22.6]} 20. Qd3 {[%clk 0:02:44.9]} 20... Nxg5
{[%clk 0:01:20.6]} 21. hxg5 {[%clk 0:02:45.8]} 21... e5 {[%clk 0:01:14.2]} 22.
f6 {[%clk 0:02:45.8]} 22... g6 {[%clk 0:01:11]} 23. fxe7 {[%clk 0:02:46.1]}
23... Re8 {[%clk 0:01:01.8]} 24. Nb3 {[%clk 0:02:41.4]} 24... Rxe7 {[%clk
0:00:58.9]} 25. g4 {[%clk 0:02:41.8]} 25... a5 {[%clk 0:00:54.5]} 26. Qh3 {[%clk
0:02:41.6]} 26... Qxc2+ {[%clk 0:00:47.4]} 27. Ka1 {[%clk 0:02:41.5]} 27... f6
{[%clk 0:00:46.5]} 28. gxf6 {[%clk 0:02:40.7]} 28... Rf7 {[%clk 0:00:46.2]} 29.
g5 {[%clk 0:02:41]} 29... a4 {[%clk 0:00:44.5]} 30. Rc1 {[%clk 0:02:26.2]} 30...
axb3 {[%clk 0:00:39.4]} 31. Rxc2 {[%clk 0:02:18]} 31... Rxc2 {[%clk 0:00:38.9]}
32. axb3 {[%clk 0:02:07]} 32... Rxe2 {[%clk 0:00:35.6]} 33. Qc8+ {[%clk
0:02:06.2]} 33... Rf8 {[%clk 0:00:34.9]} 34. Qe6+ {[%clk 0:02:06.8]} 34... Kh8
{[%clk 0:00:33.7]} 35. Qe7 {[%clk 0:02:06.8]} 35... Rg8 {[%clk 0:00:32.6]} 36.
Kb1 {[%clk 0:02:00.8]} 36... Rg2 {[%clk 0:00:27.2]} 37. f7 {[%clk 0:02:00]}
37... Rg1+ {[%clk 0:00:24.5]} 38. Kc2 {[%clk 0:01:58.4]} 38... Rc8+ {[%clk
0:00:24.4]} 39. Kd2 {[%clk 0:01:58.6]} 39... Rg2+ {[%clk 0:00:23.6]} 40. Kd3
{[%clk 0:01:59]} 40... e4+ {[%clk 0:00:21.5]} 41. Kd4 {[%clk 0:01:56.6]} 41...
Rd2+ {[%clk 0:00:20.4]} 42. Ke3 {[%clk 0:01:56.6]} 42... Rd3+ {[%clk 0:00:19.5]}
43. Kf4 {[%clk 0:01:51.9]} 43... Rf3+ {[%clk 0:00:15.8]} 44. Kg4 {[%clk
0:01:52.1]} 44... h5+ {[%clk 0:00:12.9]} 45. gxh6 {[%clk 0:01:52]} 1-0

[Event "*** Titled Tuesday Blitz"]
[Site "Chess.com"]
[Date "2020.04.21"]
[Round "9"]
[White "MasterKroket"]
[Black "Roenko_Artur"]
[Result "0-1"]
[WhiteElo "2415"]
[BlackElo "2291"]
[TimeControl "180+1"]
[EndTime "11:48:33 PDT"]
[Termination "Roenko_Artur won by resignation"]

1. d4 {[%clk 0:03:00.9]} 1... d5 {[%clk 0:02:59.6]} 2. c4 {[%clk 0:03:01.5]}
2... e6 {[%clk 0:02:59.6]} 3. Nc3 {[%clk 0:03:01.4]} 3... c6 {[%clk 0:03:00.2]}
4. Nf3 {[%clk 0:03:02.1]} 4... dxc4 {[%clk 0:02:59.9]} 5. e3 {[%clk 0:02:54.3]}
5... b5 {[%clk 0:02:59]} 6. a4 {[%clk 0:02:55]} 6... Bb4 {[%clk 0:02:59.1]} 7.
Bd2 {[%clk 0:02:53.6]} 7... a5 {[%clk 0:02:58.9]} 8. axb5 {[%clk 0:02:51.3]}
8... Bxc3 {[%clk 0:02:58.8]} 9. Bxc3 {[%clk 0:02:52]} 9... cxb5 {[%clk
0:02:59.4]} 10. b3 {[%clk 0:02:52]} 10... Bb7 {[%clk 0:02:59.8]} 11. bxc4 {[%clk
0:02:51.2]} 11... b4 {[%clk 0:03:00.4]} 12. Bb2 {[%clk 0:02:51.4]} 12... Nf6
{[%clk 0:03:00.3]} 13. Be2 {[%clk 0:02:46.4]} 13... O-O {[%clk 0:02:57.8]} 14.
O-O {[%clk 0:02:46.2]} 14... Nbd7 {[%clk 0:02:56.2]} 15. c5 {[%clk 0:02:44.2]}
15... Bc6 {[%clk 0:02:54.6]} 16. Ne5 {[%clk 0:02:17.7]} 16... Nxe5 {[%clk
0:02:46.5]} 17. dxe5 {[%clk 0:02:18.6]} 17... Qxd1 {[%clk 0:02:34.2]} 18. Rfxd1
{[%clk 0:02:18.4]} 18... Nd7 {[%clk 0:02:33.2]} 19. Rd6 {[%clk 0:02:19]} 19...
Rfc8 {[%clk 0:02:19.7]} 20. Rad1 {[%clk 0:02:10.1]} 20... Nxc5 {[%clk 0:02:00]}
21. Rc1 {[%clk 0:02:09.1]} 21... Na4 {[%clk 0:01:59.9]} 22. Bd4 {[%clk
0:01:55.5]} 22... Bd5 {[%clk 0:01:41.1]} 23. Ra1 {[%clk 0:01:51.5]} 23... Nc3
{[%clk 0:01:36.6]} 24. Bd3 {[%clk 0:01:39.2]} 24... g6 {[%clk 0:01:15.5]} 25.
Rb6 {[%clk 0:01:25.9]} 25... Be4 {[%clk 0:00:51.3]} 26. Ba6 {[%clk 0:01:17.6]}
26... Rc6 {[%clk 0:00:38.1]} 27. Rxa5 {[%clk 0:01:10.6]} 27... Rxb6 {[%clk
0:00:35.9]} 28. Bxb6 {[%clk 0:01:10.7]} 28... b3 {[%clk 0:00:30.6]} 0-1